[Event "58th Akiba Rubinstein C 2022"]
[Site "Polanica-Zdroj"]
[Date "2022.08.20"]
[Round "8.9"]
[White "Krasowski, Slawomir"]
[Black "Szydelko, Kazimierz"]
[Result "0-1"]
[ECO "B20"]
[WhiteElo "1855"]
[BlackElo "1661"]
[Annotator "NA RC"]
[PlyCount "98"]
[EventDate "2022.08.13"]
[EventCountry "POL"]
[SourceTitle "playchess.com"]
[Source "ChessBase"]
[SourceQuality "1"]
[TimeControl "40/5400+30:1800+30"]

1. e4 {[%emt 0:00:04]} c5 {[%emt 0:00:22]} 2. g3 {[%emt 0:00:09]} Nc6 {[%emt 0:00:25]} 3. Bg2 {[%emt 0:00:08]} g6 {[%emt 0:00:10]} 4. Ne2 {[%emt 0:00:12]} Bg7 {[%emt 0:00:08]} 5. O-O {[%emt 0:00:09]} e6 {[%emt 0:00:20]} 6. Nbc3 Nge7 {[%emt 0:00:53]} 7. f4 {[%emt 0:02:25]} O-O {[%emt 0:00:41]} 8. e5 {[%emt 0:01:59]} d5 {[%emt 0:06:25]} 9. exd6 Nf5 {[%emt 0:01:36]} 10. Ne4 {[%emt 0:01:12]} Nxd6 {[%emt 0:00:22]} 11. N2c3 {[%emt 0:00:27]} Nxe4 {[%emt 0:08:12]} 12. Nxe4 {[%emt 0:01:01]} b6 {[%emt 0:01:08]} 13. h4 {[%emt 0:04:41]} Bb7 {[%emt 0:03:13]} 14. c3 {[%emt 0:02:45]} Ne7 15. Nf6+ {[%emt 0:00:10]} Bxf6 {[%emt 0:02:37]} 16. Bxb7 {[%emt 0:00:04]} Rb8 {[%emt 0:00:12]} 17. Be4 {[%emt 0:01:54]} Nf5 {[%emt 0:02:33]} 18. Kh2 {[%emt 0:00:19]} Bxh4 {[%emt 0:08:35]} 19. Bxf5 {[%emt 0:00:45]} gxf5 {[%emt 0:00:15]} 20. Qh5 {[%emt 0:01:47]} Bf6 {[%emt 0:02:32]} 21. Kg2 {[%emt 0:00:11]} Bg7 {[%emt 0:01:25]} 22. Rh1 {[%emt 0:00:23]} h6 {[%emt 0:00:30]} 23. g4 {[%emt 0:01:04]} Qd5+ {[%emt 0:02:07]} 24. Kg1 {[%emt 0:00:16]} Qf3 {[%emt 0:01:30]} 25. gxf5 {[%emt 0:01:49]} Qg3+ {[%emt 0:00:28]} 26. Kf1 {[%emt 0:00:32]} Qxf4+ {[%emt 0:00:07]} 27. Ke1 {[%emt 0:00:15]} exf5 28. Rg1 {[%emt 0:00:53]} Rfe8+ {[%emt 0:03:05]} 29. Kd1 {[%emt 0:00:09]} Re6 {[%emt 0:01:33]} 30. Kc2 {[%emt 0:03:00]} c4 {[%emt 0:05:24]} 31. b3 {[%emt 0:00:23]} Rd8 {[%emt 0:06:25]} 32. bxc4 {[%emt 0:01:47]} Qxc4 {[%emt 0:02:28]} 33. Qxf5 {[%emt 0:03:55]} Rd5 {[%emt 0:00:25]} 34. Qg4 {[%emt 0:00:58]} Rd8 35. Qf5 {[%emt 0:00:02]} Rd5 {[%emt 0:01:00]} 36. Qg4 {[%emt 0:00:58]} Qd3+ {[%emt 0:02:42]} 37. Kb3 {[%emt 0:03:44]} Qc4+ {[%emt 0:00:00]} 38. Kc2 {[%emt 0:00:00]} Qd3+ {[%emt 0:01:00]} 39. Kb3 {[%emt 0:01:00]} Qc4+ {[%emt 0:00:00]} 40. Kc2 {[%emt 0:00:00]} Qd3+ {[%emt 0:01:00]} 41. Kb3 {[%emt 0:10:18]} Qc4+ {[%emt 0:28:18]} 42. Kc2 {[%emt 0:17:58]} Qd3+ {[%emt 0:02:42]} 43. Kb3 Rg5 {[%emt 0:08:02]} 44. Qd1 {[%emt 0:04:08]} Rb5+ {[%emt 0:01:12]} 45. Ka3 {[%emt 0:01:05]} Rd5 {[%emt 0:00:00]} 46. Kb3 {[%emt 0:00:00]} Rb5+ {[%emt 0:01:00]} 47. Ka3 {[%emt 0:01:00]} Rd5 {[%emt 0:00:00]} 48. Kb3 {[%emt 0:00:00]} Rb5+ {[%emt 0:01:00]} 49. Ka3 {[%emt 0:01:00]} Ree5 {[%emt 0:05:31]} 0-1

[Event "58th Akiba Rubinstein C 2022"]
[Site "Polanica-Zdroj"]
[Date "2022.08.20"]
[Round "8.10"]
[White "Swierczynski, Stanislaw"]
[Black "Bukowska, Katarzyna"]
[Result "1/2-1/2"]
[ECO "C68"]
[WhiteElo "1626"]
[BlackElo "1842"]
[Annotator "NA"]
[PlyCount "75"]
[EventDate "2022.08.13"]
[EventCountry "POL"]
[SourceTitle "playchess.com"]
[Source "ChessBase"]
[SourceQuality "1"]
[TimeControl "40/5400+30:1800+30"]

1. e4 {[%emt 0:00:08]} e5 {[%emt 0:00:06]} 2. Nf3 {[%emt 0:00:05]} Nc6 {[%emt 0:00:10]} 3. Bb5 {[%emt 0:00:07]} a6 {[%emt 0:00:12]} 4. Bxc6 {[%emt 0:00:20]} dxc6 {[%emt 0:00:24]} 5. O-O {[%emt 0:00:07]} Bg4 {[%emt 0:01:17]} 6. h3 {[%emt 0:00:26]} Bh5 {[%emt 0:01:38]} 7. d3 {[%emt 0:01:32]} Qf6 {[%emt 0:03:09]} 8. Be3 Bxf3 {[%emt 0:03:32]} 9. Qxf3 {[%emt 0:03:02]} Qxf3 {[%emt 0:00:20]} 10. gxf3 {[%emt 0:00:07]} O-O-O {[%emt 0:01:28]} 11. f4 {[%emt 0:00:37]} Bd6 {[%emt 0:01:22]} 12. f5 {[%emt 0:04:18]} f6 {[%emt 0:09:35]} 13. Nd2 g6 {[%emt 0:05:06]} 14. fxg6 {[%emt 0:01:53]} hxg6 {[%emt 0:00:11]} 15. Kg2 {[%emt 0:00:17]} g5 {[%emt 0:09:57]} 16. f3 {[%emt 0:01:50]} Ne7 {[%emt 0:00:17]} 17. Rh1 {[%emt 0:06:30]} Ng6 {[%emt 0:00:26]} 18. Nf1 {[%emt 0:03:01]} Rdg8 {[%emt 0:04:34]} 19. Nh2 {[%emt 0:01:49]} Kd7 {[%emt 0:14:05]} 20. Ng4 {[%emt 0:03:36]} Ke6 {[%emt 0:00:18]} 21. Nh2 {[%emt 0:00:00]} Kd7 {[%emt 0:00:42]} 22. Ng4 {[%emt 0:01:00]} Ke6 {[%emt 0:00:18]} 23. Rad1 {[%emt 0:05:46]} Rd8 {[%emt 0:04:58]} 24. b3 {[%emt 0:04:12]} Bb4 {[%emt 0:03:42]} 25. a4 {[%emt 0:03:35]} Bc3 {[%emt 0:00:47]} 26. Kg3 {[%emt 0:03:37]} Bb4 {[%emt 0:00:13]} 27. Kg2 {[%emt 0:00:00]} Bc3 {[%emt 0:00:47]} 28. Kg3 {[%emt 0:01:00]} Rd7 {[%emt 0:03:56]} 29. Kg2 {[%emt 0:02:15]} Rdd8 {[%emt 0:00:00]} 30. Kg3 {[%emt 0:00:00]} Rd7 {[%emt 0:01:00]} 31. Kg2 {[%emt 0:01:00]} Rdd8 {[%emt 0:00:00]} 32. Kg3 {[%emt 0:00:00]} Rd7 {[%emt 0:01:00]} 33. Kg2 {[%emt 0:01:00]} Nh4+ {[%emt 0:03:08]} 34. Kg3 {[%emt 0:00:00]} Rdd8 {[%emt 0:00:00]} 35. Bd2 {[%emt 0:06:49]} Bxd2 {[%emt 0:04:56]} 36. Rxd2 {[%emt 0:00:02]} Ng6 {[%emt 0:00:10]} 37. Ne3 {[%emt 0:01:16]} a5 {[%emt 0:02:41]} 38. Nf5 {[%emt 0:00:26]} 1/2-1/2

[Event "58th Akiba Rubinstein C 2022"]
[Site "Polanica-Zdroj"]
[Date "2022.08.20"]
[Round "8.11"]
[White "Gregulski, Zbigniew"]
[Black "Krupa, Jerzy"]
[Result "0-1"]
[ECO "A40"]
[WhiteElo "1591"]
[BlackElo "1771"]
[Annotator "NA RC"]
[PlyCount "116"]
[EventDate "2022.08.13"]
[EventCountry "POL"]
[SourceTitle "playchess.com"]
[Source "ChessBase"]
[SourceQuality "1"]
[TimeControl "40/5400+30:1800+30"]

1. d4 {[%emt 0:00:17]} e6 {[%emt 0:00:33]} 2. Nf3 {[%emt 0:00:33]} c5 {[%emt 0:00:26]} 3. g3 {[%emt 0:00:53]} cxd4 {[%emt 0:00:57]} 4. Bg2 {[%emt 0:00:42]} Nc6 {[%emt 0:00:46]} 5. Nxd4 {[%emt 0:01:02]} Nf6 {[%emt 0:00:41]} 6. O-O {[%emt 0:00:17]} Bc5 {[%emt 0:00:46]} 7. Nb3 {[%emt 0:00:44]} Be7 {[%emt 0:00:27]} 8. Nc3 {[%emt 0:00:55]} d5 {[%emt 0:00:43]} 9. e4 {[%emt 0:02:24]} d4 {[%emt 0:05:22]} 10. Ne2 {[%emt 0:02:50]} e5 11. f4 {[%emt 0:01:36]} Qb6 {[%emt 0:00:58]} 12. Kh1 {[%emt 0:00:40]} Bg4 {[%emt 0:05:03]} 13. h3 Bxe2 {[%emt 0:12:28]} 14. Qxe2 {[%emt 0:02:51]} O-O {[%emt 0:00:30]} 15. fxe5 {[%emt 0:04:07]} Nxe5 {[%emt 0:00:11]} 16. Bf4 {[%emt 0:04:46]} Ng6 {[%emt 0:03:06]} 17. e5 {[%emt 0:02:04]} Nd7 {[%emt 0:09:04]} 18. Be4 {[%emt 0:01:31]} Nc5 {[%emt 0:07:31]} 19. Nxc5 {[%emt 0:06:55]} Bxc5 {[%emt 0:00:54]} 20. b3 Rac8 {[%emt 0:06:35]} 21. Kh2 {[%emt 0:05:56]} Rc7 {[%emt 0:03:02]} 22. Kh1 {[%emt 0:00:00]} Rcc8 {[%emt 0:00:00]} 23. Kh2 {[%emt 0:01:00]} Rc7 {[%emt 0:01:00]} 24. Bd3 {[%emt 0:04:02]} Re8 {[%emt 0:03:24]} 25. Be4 {[%emt 0:00:00]} Rf8 {[%emt 0:00:00]} 26. Bd3 {[%emt 0:01:00]} Re8 {[%emt 0:01:00]} 27. Be4 {[%emt 0:00:00]} Rf8 {[%emt 0:00:00]} 28. Bd3 {[%emt 0:01:00]} Re8 {[%emt 0:01:00]} 29. Be4 {[%emt 0:00:00]} Rf8 {[%emt 0:00:00]} 30. Bd3 {[%emt 0:01:00]} Re8 {[%emt 0:01:00]} 31. Qh5 {[%emt 0:04:35]} Rce7 {[%emt 0:01:38]} 32. Rf2 {[%emt 0:03:13]} Rc7 {[%emt 0:00:00]} 33. Rff1 {[%emt 0:00:00]} Rce7 {[%emt 0:01:00]} 34. Rf2 {[%emt 0:01:00]} Qc6 {[%emt 0:01:41]} 35. Rff1 {[%emt 0:00:00]} Qb6 {[%emt 0:00:00]} 36. Rf2 {[%emt 0:01:00]} Qc6 {[%emt 0:01:00]} 37. Rff1 {[%emt 0:00:00]} Qb6 {[%emt 0:00:00]} 38. Rf2 {[%emt 0:01:00]} Qc6 {[%emt 0:01:00]} 39. Rff1 {[%emt 0:00:00]} Qb6 {[%emt 0:00:00]} 40. Rf2 {[%emt 0:01:00]} Qc6 {[%emt 0:01:00]} 41. Raf1 {[%emt 0:37:35]} Qb6 {[%emt 0:29:19]} 42. Ra1 {[%emt 0:00:00]} Qc6 {[%emt 0:01:41]} 43. Raf1 {[%emt 0:01:00]} h6 {[%emt 0:05:36]} 44. Rf3 {[%emt 0:05:11]} b5 {[%emt 0:01:01]} 45. Qf5 {[%emt 0:03:45]} a6 {[%emt 0:03:30]} 46. Qg4 {[%emt 0:02:52]} Rxe5 {[%emt 0:09:32]} 47. Bc1 {[%emt 0:00:00]} R5e7 {[%emt 0:01:56]} 48. Bf4 {[%emt 0:01:59]} Re5 {[%emt 0:00:00]} 49. Bc1 {[%emt 0:00:00]} R5e7 {[%emt 0:01:00]} 50. Bf4 {[%emt 0:01:00]} Re5 {[%emt 0:00:00]} 51. Bc1 {[%emt 0:00:00]} R5e7 {[%emt 0:01:00]} 52. Bf4 {[%emt 0:01:00]} Re5 {[%emt 0:00:00]} 53. Bc1 {[%emt 0:08:51]} R5e7 {[%emt 0:03:02]} 54. Rf6 {[%emt 0:00:40]} gxf6 {[%emt 0:00:30]} 55. Rf2 {[%emt 0:02:32]} Re1 {[%emt 0:00:40]} 56. Rf3 {[%emt 0:01:21]} R1e7 {[%emt 0:00:20]} 57. Rf2 {[%emt 0:00:00]} Re1 {[%emt 0:00:40]} 58. Rf3 {[%emt 0:01:55]} Rxc1 {[%emt 0:01:33]} 0-1

[Event "58th Akiba Rubinstein C 2022"]
[Site "Polanica-Zdroj"]
[Date "2022.08.20"]
[Round "8.12"]
[White "Tomalak, Stanislaw"]
[Black "Bobrowski, Piotr"]
[Result "1-0"]
[ECO "A04"]
[WhiteElo "1554"]
[BlackElo "1764"]
[Annotator "NA RC"]
[PlyCount "133"]
[EventDate "2022.08.13"]
[EventCountry "POL"]
[SourceTitle "playchess.com"]
[Source "ChessBase"]
[SourceQuality "1"]
[TimeControl "40/5400+30:1800+30"]

1. Nf3 {[%emt 0:00:30]} g6 {[%emt 0:00:10]} 2. g3 {[%emt 0:00:00]} Bg7 {[%emt 0:00:08]} 3. e4 {[%emt 0:00:44]} e6 {[%emt 0:00:11]} 4. Bg2 {[%emt 0:00:07]} Ne7 {[%emt 0:00:12]} 5. O-O {[%emt 0:00:37]} O-O {[%emt 0:00:11]} 6. d3 {[%emt 0:01:43]} d5 {[%emt 0:00:28]} 7. Nbd2 {[%emt 0:01:39]} c5 {[%emt 0:01:46]} 8. Re1 {[%emt 0:01:29]} Nbc6 9. c3 {[%emt 0:03:26]} d4 {[%emt 0:02:18]} 10. c4 {[%emt 0:00:45]} e5 {[%emt 0:00:23]} 11. Nf1 {[%emt 0:01:16]} a6 {[%emt 0:01:46]} 12. h3 {[%emt 0:02:54]} Qd6 {[%emt 0:00:33]} 13. Bd2 f6 {[%emt 0:01:49]} 14. Qc1 {[%emt 0:12:22]} Be6 {[%emt 0:00:29]} 15. Bh6 {[%emt 0:00:59]} Rfb8 {[%emt 0:01:16]} 16. Bxg7 {[%emt 0:00:41]} Kxg7 17. N3h2 {[%emt 0:04:41]} b5 {[%emt 0:03:28]} 18. b3 {[%emt 0:01:03]} bxc4 {[%emt 0:01:03]} 19. bxc4 {[%emt 0:00:21]} Rb6 {[%emt 0:00:54]} 20. Ng4 {[%emt 0:06:37]} Ng8 {[%emt 0:00:21]} 21. f4 {[%emt 0:00:29]} Rab8 {[%emt 0:00:50]} 22. fxe5 {[%emt 0:01:09]} fxe5 {[%emt 0:00:31]} 23. Nd2 {[%emt 0:03:07]} a5 {[%emt 0:00:55]} 24. Nf3 h6 {[%emt 0:05:32]} 25. Nh4 {[%emt 0:10:05]} Bxg4 {[%emt 0:02:41]} 26. hxg4 {[%emt 0:01:31]} a4 {[%emt 0:00:47]} 27. a3 {[%emt 0:00:27]} Rb3 {[%emt 0:00:32]} 28. Qd1 {[%emt 0:01:07]} Na5 {[%emt 0:00:37]} 29. Rf1 {[%emt 0:02:27]} R8b7 {[%emt 0:01:34]} 30. Rf3 {[%emt 0:08:01]} Qd7 31. Bh3 {[%emt 0:08:21]} Rc3 {[%emt 0:05:19]} 32. Qf1 {[%emt 0:00:32]} g5 {[%emt 0:03:09]} 33. Nf5+ {[%emt 0:06:06]} Kg6 {[%emt 0:00:33]} 34. Rb1 {[%emt 0:06:18]} Rxb1 {[%emt 0:02:17]} 35. Qxb1 {[%emt 0:00:11]} Nxc4 {[%emt 0:00:40]} 36. Qb8 {[%emt 0:01:40]} Qe6 {[%emt 0:00:51]} 37. Qc7 {[%emt 0:00:42]} Qf6 {[%emt 0:00:00]} 38. Qb8 {[%emt 0:00:18]} Qe6 {[%emt 0:01:00]} 39. Qc7 {[%emt 0:00:42]} Qf6 {[%emt 0:04:25]} 40. Nh4+ gxh4 {[%emt 0:00:53]} 41. Rxf6+ {[%emt 0:30:37]} Nxf6 {[%emt 0:30:03]} 42. dxc4 {[%emt 0:00:30]} d3 {[%emt 0:04:45]} 43. Qd6 {[%emt 0:00:00]} hxg3 {[%emt 0:00:00]} 44. Bf1 {[%emt 0:00:00]} Rc1 {[%emt 0:00:00]} 45. Qxd3 {[%emt 0:00:00]} Nxg4 {[%emt 0:00:00]} 46. Qxg3 {[%emt 0:00:00]} Kg5 {[%emt 0:00:00]} 47. Qd3 Kg6 {[%emt 0:00:00]} 48. Qg3 {[%emt 0:00:00]} Kg5 {[%emt 0:00:00]} 49. Qg2 {[%emt 0:00:00]} Kg6 {[%emt 0:00:00]} 50. Qg3 {[%emt 0:00:00]} Kg5 51. Qg2 {[%emt 0:00:00]} Rb1 {[%emt 0:00:00]} 52. Qg3 {[%emt 0:00:00]} Rc1 53. Qg2 {[%emt 0:00:00]} Rb1 {[%emt 0:00:00]} 54. Qd2+ {[%emt 0:00:00]} Kh4 {[%emt 0:00:00]} 55. Qd3 {[%emt 0:00:00]} Kg5 {[%emt 0:00:00]} 56. Qd2+ {[%emt 0:00:00]} Kh4 57. Kg2 {[%emt 0:00:00]} h5 {[%emt 0:00:00]} 58. Be2 {[%emt 0:00:00]} Nf6 {[%emt 0:00:00]} 59. Bf1 {[%emt 0:00:00]} Ng4 {[%emt 0:00:00]} 60. Be2 {[%emt 0:00:00]} Nf6 {[%emt 0:00:00]} 61. Qe3 {[%emt 0:00:00]} Ng4 {[%emt 0:00:00]} 62. Qd2 {[%emt 0:00:00]} Nf6 {[%emt 0:00:00]} 63. Qe3 {[%emt 0:00:00]} Rb3 {[%emt 0:00:00]} 64. Qd2 {[%emt 0:00:00]} Rb1 {[%emt 0:00:00]} 65. Qe3 {[%emt 0:00:00]} Rb3 66. Qf2+ {[%emt 0:00:00]} Kg5 {[%emt 0:00:00]} 67. Qf5+ {[%emt 0:00:00]} 1-0

[Event "58th Akiba Rubinstein C 2022"]
[Site "Polanica-Zdroj"]
[Date "2022.08.20"]
[Round "8.13"]
[White "Nisztuk, Michal"]
[Black "Poniewierski, Piotr"]
[Result "0-1"]
[ECO "B12"]
[WhiteElo "1548"]
[BlackElo "1747"]
[Annotator "NA RC"]
[PlyCount "88"]
[EventDate "2022.08.13"]
[EventCountry "POL"]
[SourceTitle "playchess.com"]
[Source "ChessBase"]
[SourceQuality "1"]
[TimeControl "40/5400+30:1800+30"]

1. e4 {[%emt 0:00:30]} c6 {[%emt 0:00:11]} 2. d4 {[%emt 0:00:00]} g6 {[%emt 0:00:06]} 3. c4 {[%emt 0:00:11]} d5 {[%emt 0:00:15]} 4. e5 {[%emt 0:00:35]} h5 5. Nc3 {[%emt 0:00:38]} Nh6 {[%emt 0:01:17]} 6. Bd3 {[%emt 0:01:15]} Bg7 {[%emt 0:01:38]} 7. Nge2 {[%emt 0:00:21]} O-O {[%emt 0:01:06]} 8. Bg5 {[%emt 0:00:36]} Bf5 {[%emt 0:10:02]} 9. O-O {[%emt 0:02:16]} Qd7 {[%emt 0:06:47]} 10. Nf4 {[%emt 0:04:57]} Bxd3 {[%emt 0:06:35]} 11. Qxd3 e6 {[%emt 0:03:58]} 12. cxd5 {[%emt 0:03:48]} cxd5 {[%emt 0:00:14]} 13. Nxg6 {[%emt 0:12:19]} fxg6 {[%emt 0:00:14]} 14. Bxh6 {[%emt 0:00:40]} Bxh6 {[%emt 0:00:43]} 15. Qxg6+ {[%emt 0:00:16]} Bg7 {[%emt 0:00:36]} 16. Qxh5 Nc6 {[%emt 0:01:48]} 17. Rad1 {[%emt 0:00:42]} Rf5 {[%emt 0:04:30]} 18. Qg4 {[%emt 0:01:16]} Raf8 19. Rd3 {[%emt 0:04:48]} Rf4 {[%emt 0:02:26]} 20. Qd1 {[%emt 0:00:49]} Qf7 {[%emt 0:06:19]} 21. Qd2 {[%emt 0:01:04]} a6 {[%emt 0:15:07]} 22. a3 {[%emt 0:02:27]} Qf5 {[%emt 0:01:43]} 23. h3 Rf7 {[%emt 0:06:22]} 24. b4 {[%emt 0:06:43]} b5 {[%emt 0:03:35]} 25. g4 {[%emt 0:02:18]} Qh7 {[%emt 0:02:25]} 26. Ne2 {[%emt 0:01:41]} Rf3 {[%emt 0:02:23]} 27. Rxf3 {[%emt 0:01:48]} Rxf3 {[%emt 0:00:08]} 28. Rc1 {[%emt 0:07:12]} Rxh3 {[%emt 0:07:16]} 29. Ng3 {[%emt 0:02:19]} Ne7 {[%emt 0:01:19]} 30. Rc7 {[%emt 0:02:13]} Qh4 {[%emt 0:02:44]} 31. Ra7 {[%emt 0:03:49]} Ng6 {[%emt 0:02:20]} 32. Rc7 {[%emt 0:00:00]} Ne7 {[%emt 0:00:00]} 33. Ra7 {[%emt 0:01:00]} Ng6 {[%emt 0:01:00]} 34. Qc1 {[%emt 0:03:35]} Qxg4 35. Rxa6 {[%emt 0:06:38]} Nf4 {[%emt 0:03:06]} 36. Ra7 {[%emt 0:00:00]} Ng6 {[%emt 0:00:30]} 37. Ra6 {[%emt 0:01:00]} Nf4 {[%emt 0:00:30]} 38. Ra7 {[%emt 0:00:00]} Ng6 {[%emt 0:00:30]} 39. Ra6 {[%emt 0:01:00]} Nf4 {[%emt 0:00:30]} 40. Ra8+ {[%emt 0:01:53]} Kh7 {[%emt 0:01:03]} 41. Ra7 {[%emt 0:26:19]} Kg8 {[%emt 0:29:57]} 42. Ra8+ {[%emt 0:04:41]} Kh7 {[%emt 0:01:03]} 43. Qc2+ {[%emt 0:01:00]} Kh6 {[%emt 0:00:21]} 44. Qd2 {[%emt 0:04:12]} Rh1+ {[%emt 0:00:00]} 0-1

[Event "58th Akiba Rubinstein C 2022"]
[Site "Polanica-Zdroj"]
[Date "2022.08.20"]
[Round "8.14"]
[White "Wasylkiewicz, Andrzej"]
[Black "Stopka, Tomasz"]
[Result "1-0"]
[ECO "B23"]
[WhiteElo "1691"]
[BlackElo "1355"]
[Annotator "NA RC"]
[PlyCount "67"]
[EventDate "2022.08.13"]
[EventCountry "POL"]
[SourceTitle "playchess.com"]
[Source "ChessBase"]
[SourceQuality "1"]
[TimeControl "40/5400+30:1800+30"]

1. e4 {[%emt 0:00:12]} c5 {[%emt 0:00:12]} 2. Nc3 {[%emt 0:00:35]} e6 {[%emt 0:00:21]} 3. g3 {[%emt 0:00:49]} a6 {[%emt 0:00:21]} 4. Bg2 {[%emt 0:00:45]} Nc6 {[%emt 0:01:11]} 5. a4 {[%emt 0:03:21]} Qc7 {[%emt 0:01:20]} 6. d3 {[%emt 0:00:54]} Nf6 {[%emt 0:03:01]} 7. f4 {[%emt 0:04:27]} d6 {[%emt 0:00:52]} 8. Nge2 {[%emt 0:01:40]} Be7 {[%emt 0:02:55]} 9. O-O {[%emt 0:00:37]} h5 {[%emt 0:06:13]} 10. h3 {[%emt 0:04:43]} Rb8 {[%emt 0:01:56]} 11. Be3 {[%emt 0:02:22]} b6 12. Qd2 {[%emt 0:01:51]} b5 {[%emt 0:04:52]} 13. axb5 {[%emt 0:01:11]} axb5 {[%emt 0:00:14]} 14. Kh2 {[%emt 0:03:55]} b4 {[%emt 0:05:07]} 15. Nd1 {[%emt 0:01:07]} Bb7 {[%emt 0:02:30]} 16. c3 {[%emt 0:06:35]} Na5 {[%emt 0:02:56]} 17. Rb1 {[%emt 0:06:11]} Bc6 {[%emt 0:07:29]} 18. c4 Rd8 {[%emt 0:12:49]} 19. f5 {[%emt 0:05:52]} h4 {[%emt 0:01:02]} 20. fxe6 {[%emt 0:05:22]} hxg3+ {[%emt 0:00:57]} 21. Kg1 {[%emt 0:00:45]} fxe6 {[%emt 0:00:21]} 22. Nf4 {[%emt 0:00:37]} Kf7 {[%emt 0:02:35]} 23. Qe2 {[%emt 0:05:59]} Rdf8 {[%emt 0:04:52]} 24. Qf3 {[%emt 0:01:37]} Bd7 25. Qxg3 {[%emt 0:01:06]} Ke8 {[%emt 0:03:41]} 26. Ng6 {[%emt 0:01:11]} Kf7 {[%emt 0:01:15]} 27. Nxh8+ {[%emt 0:01:13]} Rxh8 {[%emt 0:00:12]} 28. Bg5 {[%emt 0:01:42]} Nc6 {[%emt 0:00:28]} 29. Ne3 {[%emt 0:01:26]} Nd4 {[%emt 0:00:20]} 30. Rf2 {[%emt 0:00:53]} Ke8 {[%emt 0:01:35]} 31. Rff1 Kf7 32. Rf2 Ke8 33. Bxf6 Bxf6 34. Qg6+ 1-0

[Event "58th Akiba Rubinstein C 2022"]
[Site "Polanica-Zdroj"]
[Date "2022.08.21"]
[Round "9.1"]
[White "Marusenko, Petr"]
[Black "Shilov, Sergej"]
[Result "1/2-1/2"]
[ECO "E62"]
[WhiteElo "2075"]
[BlackElo "2048"]
[Annotator "NA RC"]
[PlyCount "64"]
[EventDate "2022.08.13"]
[EventCountry "POL"]
[SourceTitle "playchess.com"]
[Source "ChessBase"]
[SourceQuality "1"]
[TimeControl "40/5400+30:1800+30"]

1. d4 {[%emt 0:00:30]} d6 {[%emt 0:00:48]} 2. Nf3 {[%emt 0:00:00]} Nf6 {[%emt 0:00:28]} 3. c4 {[%emt 0:00:34]} g6 {[%emt 0:00:15]} 4. g3 {[%emt 0:00:08]} Bg7 {[%emt 0:00:26]} 5. Bg2 {[%emt 0:00:04]} O-O {[%emt 0:00:15]} 6. O-O {[%emt 0:00:04]} c6 {[%emt 0:00:40]} 7. Nc3 {[%emt 0:00:06]} Qa5 {[%emt 0:02:39]} 8. e4 {[%emt 0:00:59]} Qh5 {[%emt 0:01:58]} 9. Ng5 {[%emt 0:01:19]} Bg4 {[%emt 0:09:01]} 10. Bf3 {[%emt 0:02:53]} Nbd7 $16 {[%emt 0:08:57]} (10... h6 $1 $15 {stays ahead.} 11. Bxg4 Nxg4) 11. Bxg4 {[%emt 0:01:49]} Qxg4 {[%emt 0:02:13]} 12. h3 {[%emt 0:00:49]} Qxd1 {[%emt 0:01:08]} 13. Rxd1 {[%emt 0:00:03]} c5 {[%emt 0:02:17]} 14. Be3 {[%emt 0:01:49]} cxd4 {[%emt 0:03:13]} 15. Bxd4 {[%emt 0:00:04]} Rac8 {[%emt 0:00:10]} 16. b3 {[%emt 0:00:40]} a6 {[%emt 0:00:43]} 17. Re1 {[%emt 0:02:43]} e5 {[%emt 0:04:07]} 18. Be3 {[%emt 0:00:23]} b5 {[%emt 0:00:01]} 19. Nd5 {[%emt 0:01:03]} Nxd5 {[%emt 0:00:08]} 20. cxd5 {[%emt 0:00:22]} h6 {[%emt 0:01:33]} 21. Nf3 {[%emt 0:00:02]} f5 {[%emt 0:00:20]} 22. exf5 {[%emt 0:01:58]} gxf5 {[%emt 0:01:36]} 23. Rac1 {[%emt 0:00:04]} Nf6 {[%emt 0:02:29]} 24. Rxc8 {[%emt 0:01:46]} Rxc8 {[%emt 0:00:15]} 25. Nh4 {[%emt 0:00:02]} f4 {[%emt 0:08:35]} 26. gxf4 {[%emt 0:01:08]} Nxd5 {[%emt 0:00:25]} 27. Nf5 {[%emt 0:00:43]} Rc2 {[%emt 0:01:57]} 28. fxe5 {[%emt 0:01:04]} Nxe3 {[%emt 0:08:32]} 29. Nxe3 {[%emt 0:02:21]} Rxa2 {[%emt 0:05:44]} 30. e6 {[%emt 0:02:40]} Ra1 {[%emt 0:01:04]} 31. Kf1 {[%emt 0:07:25]} a5 {[%emt 0:05:59]} 32. Nd5 {[%emt 0:33:24]} a4 {[%emt 0:02:11]} 1/2-1/2

[Event "58th Akiba Rubinstein C 2022"]
[Site "Polanica-Zdroj"]
[Date "2022.08.21"]
[Round "9.2"]
[White "Gromczak, Dariusz"]
[Black "Kawula, Andrzej"]
[Result "1-0"]
[ECO "C05"]
[WhiteElo "1906"]
[BlackElo "1870"]
[Annotator "NA RC"]
[PlyCount "59"]
[EventDate "2022.08.13"]
[EventCountry "POL"]
[SourceTitle "playchess.com"]
[Source "ChessBase"]
[SourceQuality "1"]
[TimeControl "40/5400+30:1800+30"]

1. e4 {[%emt 0:00:04]} e6 {[%emt 0:00:12]} 2. d4 {[%emt 0:00:17]} d5 {[%emt 0:00:12]} 3. Nd2 {[%emt 0:00:13]} Nf6 {[%emt 0:00:31]} 4. e5 {[%emt 0:02:27]} Nfd7 {[%emt 0:01:11]} 5. Bd3 {[%emt 0:00:23]} c5 {[%emt 0:00:18]} 6. c3 {[%emt 0:00:21]} Nc6 {[%emt 0:00:36]} 7. Ngf3 {[%emt 0:00:43]} cxd4 {[%emt 0:02:16]} 8. cxd4 {[%emt 0:00:04]} f5 {[%emt 0:00:10]} 9. exf6 {[%emt 0:00:51]} Nxf6 {[%emt 0:00:05]} 10. O-O {[%emt 0:00:30]} Bd6 {[%emt 0:00:14]} 11. Re1 {[%emt 0:01:25]} O-O {[%emt 0:00:31]} 12. Nf1 {[%emt 0:03:36]} Qc7 {[%emt 0:03:11]} 13. Bg5 {[%emt 0:02:14]} Bf4 {[%emt 0:05:19]} 14. Bh4 {[%emt 0:05:56]} e5 {[%emt 0:06:46]} 15. dxe5 {[%emt 0:02:55]} Nxe5 {[%emt 0:01:46]} 16. Nxe5 {[%emt 0:01:27]} Bxe5 {[%emt 0:01:15]} 17. Rc1 {[%emt 0:15:11]} Qd6 {[%emt 0:00:57]} 18. Bxf6 {[%emt 0:07:58]} Qxf6 {[%emt 0:01:53]} 19. Bxh7+ {[%emt 0:01:17]} Kxh7 {[%emt 0:02:37]} 20. Qh5+ {[%emt 0:00:22]} Kg8 {[%emt 0:00:28]} 21. Qxe5 {[%emt 0:00:36]} Qxf2+ {[%emt 0:00:35]} 22. Kh1 {[%emt 0:00:11]} d4 {[%emt 0:15:43]} 23. Ng3 {[%emt 0:07:42]} Bg4 {[%emt 0:06:37]} 24. Ne4 {[%emt 0:08:08]} Qxb2 {[%emt 0:12:44]} 25. Rc7 {[%emt 0:00:39]} Rf7 {[%emt 0:03:24]} 26. Rxf7 {[%emt 0:00:23]} Kxf7 {[%emt 0:00:55]} 27. Qf4+ {[%emt 0:04:49]} Kg8 {[%emt 0:00:34]} 28. Qxg4 {[%emt 0:00:05]} Rf8 {[%emt 0:01:56]} 29. Qe6+ {[%emt 0:01:13]} Kh8 {[%emt 0:01:27]} 30. Ng5 {[%emt 0:00:36]} 1-0